[Event "Turkish Second League 2019"]
[Site "Konya"]
[Date "2019.07.23"]
[Round "3"]
[White "Demirci, Fatih"]
[Black "Ozsakallioglu, Akin"]
[Result "0-1"]
[ECO "B52"]
[WhiteElo "1763"]
[BlackElo "1901"]
[Annotator "NA"]
[PlyCount "108"]
[EventDate "2019.07.22"]
[EventType "team-tourn"]
[EventCountry "TUR"]
[SourceTitle "playchess.com"]
[Source "ChessBase"]
[SourceQuality "1"]
[TimeControl "5400+30"]

1. e4 {[%emt 0:00:30]} c5 {[%emt 0:00:30]} 2. Nf3 {[%emt 0:00:30]} d6 {[%emt 0:00:00]} 3. Bb5+ {[%emt 0:01:30]} Bd7 {[%emt 0:00:00]} 4. Bxd7+ {[%emt 0:00:30]} Qxd7 {[%emt 0:00:00]} 5. O-O {[%emt 0:00:00]} Nc6 {[%emt 0:00:00]} 6. c3 {[%emt 0:00:00]} g6 {[%emt 0:01:30]} 7. d4 {[%emt 0:00:30]} cxd4 {[%emt 0:00:30]} 8. cxd4 {[%emt 0:00:00]} Nf6 {[%emt 0:00:30]} 9. Nc3 {[%emt 0:05:00]} Bg7 {[%emt 0:00:30]} 10. Bg5 {[%emt 0:01:30]} h6 {[%emt 0:03:30]} 11. Bh4 {[%emt 0:04:30]} Nh5 {[%emt 0:02:30]} 12. Bg3 {[%emt 0:05:30]} Nxg3 {[%emt 0:00:30]} 13. hxg3 {[%emt 0:00:30]} O-O {[%emt 0:00:30]} 14. Re1 {[%emt 0:01:30]} Rfd8 {[%emt 0:03:30]} 15. Qd2 {[%emt 0:03:30]} Rac8 {[%emt 0:04:30]} 16. Rac1 {[%emt 0:07:30]} Kh7 {[%emt 0:07:30]} 17. Ne2 {[%emt 0:04:30]} e5 {[%emt 0:05:30]} 18. d5 {[%emt 0:05:30]} Nb8 {[%emt 0:05:30]} 19. Rxc8 {[%emt 0:08:30]} Rxc8 {[%emt 0:00:30]} 20. Rc1 {[%emt 0:01:30]} Rxc1+ {[%emt 0:10:30]} 21. Qxc1 {[%emt 0:00:00]} Na6 {[%emt 0:00:30]} 22. Qc4 {[%emt 0:03:00]} Bf6 {[%emt 0:00:30]} 23. Nc3 {[%emt 0:00:30]} Bd8 {[%emt 0:11:30]} 24. Qb5 {[%emt 0:07:30]} Qe7 {[%emt 0:00:00]} 25. Na4 {[%emt 0:04:30]} Kg7 {[%emt 0:01:00]} 26. Nd2 {[%emt 0:04:30]} Kf8 {[%emt 0:00:30]} 27. Nc4 {[%emt 0:02:30]} Qc7 {[%emt 0:00:30]} 28. Nc3 {[%emt 0:02:30]} Nc5 {[%emt 0:05:30]} 29. Ne3 {[%emt 0:02:30]} a6 {[%emt 0:00:30]} 30. Qe2 {[%emt 0:01:30]} b5 {[%emt 0:01:30]} 31. a3 {[%emt 0:02:30]} Nb3 {[%emt 0:03:30]} 32. Nc2 {[%emt 0:01:30]} Nd4 {[%emt 0:00:30]} 33. Qd2 {[%emt 0:02:27]} Nxc2 {[%emt 0:05:30]} 34. Qxc2 {[%emt 0:00:09]} Qc5 {[%emt 0:02:30]} 35. Qe2 {[%emt 0:01:50]} h5 {[%emt 0:08:20]} 36. Kh2 {[%emt 0:04:08]} Bb6 {[%emt 0:00:13]} 37. Nd1 {[%emt 0:00:53]} Qc1 {[%emt 0:00:06]} 38. a4 {[%emt 0:01:41]} Bd4 {[%emt 0:02:39]} 39. axb5 {[%emt 0:00:39]} axb5 {[%emt 0:00:06]} 40. b3 {[%emt 0:02:25]} Qb1 {[%emt 0:00:22]} 41. Qf3 {[%emt 0:01:16]} Kg7 {[%emt 0:00:05]} 42. Ne3 {[%emt 0:00:42]} Qc1 {[%emt 0:01:13]} 43. Qe2 {[%emt 0:02:16]} Qc5 {[%emt 0:05:09]} 44. Nc2 {[%emt 0:03:55]} b4 {[%emt 0:02:24]} 45. Nxd4 {[%emt 0:01:57]} exd4 {[%emt 0:01:12]} 46. Qa6 {[%emt 0:00:34]} Qc7 {[%emt 0:06:47]} 47. f4 {[%emt 0:01:08]} Qc5 {[%emt 0:00:10]} 48. Kh1 {[%emt 0:00:59]} Qc3 {[%emt 0:01:01]} 49. Qxd6 {[%emt 0:00:35]} d3 {[%emt 0:01:59]} 50. e5 {[%emt 0:00:01]} d2 {[%emt 0:00:31]} 51. Qf6+ {[%emt 0:00:30]} Kg8 {[%emt 0:00:00]} 52. Qd8+ {[%emt 0:01:19]} Kh7 {[%emt 0:00:00]} 53. e6 {[%emt 0:00:32]} d1=Q+ {[%emt 0:00:09]} 54. Kh2 {[%emt 0:00:00]} fxe6 {[%emt 0:00:00]} 0-1

[Event "Turkish Second League 2019"]
[Site "Konya"]
[Date "2019.07.23"]
[Round "3"]
[White "Zuberoglu, Ibrahim Berk"]
[Black "Can, Furkan"]
[Result "0-1"]
[ECO "A12"]
[WhiteElo "1737"]
[BlackElo "1900"]
[Annotator "NA"]
[PlyCount "60"]
[EventDate "2019.07.22"]
[EventType "team-tourn"]
[EventCountry "TUR"]
[SourceTitle "playchess.com"]
[Source "ChessBase"]
[SourceQuality "1"]
[TimeControl "5400+30"]

1. Nf3 {[%emt 0:00:30]} Nf6 {[%emt 0:00:30]} 2. c4 {[%emt 0:00:30]} c6 {[%emt 0:00:30]} 3. g3 {[%emt 0:00:30]} d5 {[%emt 0:00:30]} 4. Bg2 {[%emt 0:00:30]} Bf5 {[%emt 0:05:30]} 5. b3 {[%emt 0:03:30]} Nbd7 {[%emt 0:04:30]} 6. Bb2 {[%emt 0:02:30]} e6 {[%emt 0:02:30]} 7. O-O {[%emt 0:02:30]} Bd6 {[%emt 0:04:30]} 8. d3 {[%emt 0:01:30]} e5 {[%emt 0:03:30]} 9. e4 {[%emt 0:05:30]} Be6 {[%emt 0:04:30]} 10. exd5 {[%emt 0:02:30]} cxd5 {[%emt 0:00:30]} 11. cxd5 {[%emt 0:01:30]} Bxd5 {[%emt 0:01:30]} 12. Re1 {[%emt 0:03:30]} O-O {[%emt 0:00:30]} 13. Nxe5 {[%emt 0:07:30]} Bxe5 {[%emt 0:02:30]} 14. d4 {[%emt 0:26:30]} Bc7 {[%emt 0:04:30]} 15. Bh3 {[%emt 0:07:30]} Nb6 {[%emt 0:02:30]} 16. Nc3 {[%emt 0:00:30]} Bc6 {[%emt 0:00:30]} 17. Qc2 {[%emt 0:05:30]} Nbd5 {[%emt 0:03:30]} 18. Na4 {[%emt 0:05:30]} Bb6 {[%emt 0:10:30]} 19. Nc5 {[%emt 0:01:30]} Re8 {[%emt 0:01:30]} 20. Re5 {[%emt 0:05:46]} Bxc5 {[%emt 0:03:30]} 21. dxc5 {[%emt 0:01:08]} Rxe5 {[%emt 0:02:30]} 22. Bxe5 {[%emt 0:00:03]} Nb4 {[%emt 0:03:30]} 23. Qc4 {[%emt 0:11:03]} Qd5 {[%emt 0:00:30]} 24. Qxd5 {[%emt 0:00:05]} Nbxd5 {[%emt 0:00:30]} 25. Rd1 {[%emt 0:01:07]} Re8 {[%emt 0:00:30]} 26. f4 {[%emt 0:00:11]} Ne3 {[%emt 0:02:30]} 27. Rd3 {[%emt 0:02:11]} Neg4 {[%emt 0:01:30]} 28. Bc3 {[%emt 0:01:33]} h5 {[%emt 0:01:30]} 29. Bf1 {[%emt 0:01:05]} Ne4 {[%emt 0:04:30]} 30. Ba5 {[%emt 0:00:43]} Nxc5 {[%emt 0:01:30]} 0-1

[Event "Turkish Second League 2019"]
[Site "Konya"]
[Date "2019.07.23"]
[Round "3"]
[White "Guney, Gamze Nur"]
[Black "Tepeli, Sugra"]
[Result "1-0"]
[ECO "E97"]
[WhiteElo "1735"]
[BlackElo "1430"]
[Annotator "NA"]
[PlyCount "67"]
[EventDate "2019.07.22"]
[EventType "team-tourn"]
[EventCountry "TUR"]
[SourceTitle "playchess.com"]
[Source "ChessBase"]
[SourceQuality "1"]
[TimeControl "5400+30"]

1. d4 {[%emt 0:00:30]} Nf6 {[%emt 0:00:30]} 2. c4 {[%emt 0:00:30]} g6 {[%emt 0:00:30]} 3. Nc3 {[%emt 0:00:30]} Bg7 {[%emt 0:00:30]} 4. e4 {[%emt 0:00:30]} d6 {[%emt 0:00:30]} 5. Nf3 {[%emt 0:00:30]} O-O {[%emt 0:00:30]} 6. Be2 {[%emt 0:00:30]} e5 {[%emt 0:00:00]} 7. Be3 {[%emt 0:00:00]} Nc6 {[%emt 0:00:00]} 8. d5 {[%emt 0:00:00]} Ne7 {[%emt 0:00:00]} 9. b4 {[%emt 0:03:30]} Nd7 {[%emt 0:00:00]} 10. O-O {[%emt 0:13:30]} f5 {[%emt 0:00:30]} 11. Ng5 {[%emt 0:06:30]} Nf6 {[%emt 0:02:30]} 12. f3 {[%emt 0:05:30]} f4 {[%emt 0:01:30]} 13. Bf2 {[%emt 0:00:00]} h6 {[%emt 0:02:30]} 14. Ne6 {[%emt 0:01:00]} Bxe6 {[%emt 0:00:30]} 15. dxe6 {[%emt 0:00:30]} Nh7 {[%emt 0:14:30]} 16. c5 {[%emt 0:06:30]} dxc5 {[%emt 0:13:30]} 17. Bxc5 {[%emt 0:00:30]} Re8 {[%emt 0:02:30]} 18. Qb3 {[%emt 0:02:30]} b6 {[%emt 0:06:30]} 19. Bxe7 {[%emt 0:03:30]} Rxe7 {[%emt 0:03:30]} 20. Nd5 {[%emt 0:00:30]} Ng5 {[%emt 0:02:30]} 21. Nxe7+ {[%emt 0:00:30]} Qxe7 {[%emt 0:00:00]} 22. Rad1 {[%emt 0:00:30]} Nxe6 {[%emt 0:01:00]} 23. Bc4 {[%emt 0:00:30]} Re8 {[%emt 0:01:30]} 24. Bb5 {[%emt 0:00:30]} Rf8 {[%emt 0:03:30]} 25. Rd7 {[%emt 0:01:30]} Qf6 {[%emt 0:00:30]} 26. Rc1 {[%emt 0:01:30]} Kh8 {[%emt 0:02:30]} 27. Rc6 {[%emt 0:00:30]} Qh4 {[%emt 0:01:30]} 28. Rxe6 {[%emt 0:01:30]} Bf6 {[%emt 0:02:30]} 29. Rc6 {[%emt 0:01:30]} Qe1+ {[%emt 0:02:30]} 30. Bf1 {[%emt 0:00:30]} Bh4 {[%emt 0:00:30]} 31. Qd1 {[%emt 0:02:30]} Qxb4 {[%emt 0:02:30]} 32. Rcxc7 {[%emt 0:00:30]} Re8 {[%emt 0:02:30]} 33. Rh7+ {[%emt 0:00:30]} Kg8 {[%emt 0:00:30]} 34. Qd5+ {[%emt 0:00:00]} 1-0

[Event "Turkish Second League 2019"]
[Site "Konya"]
[Date "2019.07.23"]
[Round "3"]
[White "Goker, Abdulkadir"]
[Black "Celikel, Fatih"]
[Result "1-0"]
[ECO "B33"]
[WhiteElo "1707"]
[BlackElo "1868"]
[Annotator "NA"]
[PlyCount "97"]
[EventDate "2019.07.22"]
[EventType "team-tourn"]
[EventCountry "TUR"]
[SourceTitle "playchess.com"]
[Source "ChessBase"]
[SourceQuality "1"]
[TimeControl "5400+30"]

1. e4 {[%emt 0:00:30]} c5 {[%emt 0:00:30]} 2. Nf3 {[%emt 0:00:30]} Nc6 {[%emt 0:00:30]} 3. d4 {[%emt 0:00:30]} cxd4 {[%emt 0:00:30]} 4. Nxd4 {[%emt 0:00:30]} Nf6 {[%emt 0:00:00]} 5. Nc3 {[%emt 0:00:30]} e5 {[%emt 0:00:00]} 6. Ndb5 {[%emt 0:00:00]} d6 {[%emt 0:00:30]} 7. Nd5 {[%emt 0:00:00]} Nxd5 {[%emt 0:01:30]} 8. exd5 {[%emt 0:00:00]} Nb8 {[%emt 0:02:30]} 9. c4 {[%emt 0:01:00]} a6 {[%emt 0:01:30]} 10. Nc3 {[%emt 0:00:00]} Be7 {[%emt 0:00:30]} 11. Be2 {[%emt 0:01:00]} O-O {[%emt 0:00:30]} 12. O-O {[%emt 0:00:30]} f5 {[%emt 0:00:30]} 13. f4 {[%emt 0:02:30]} e4 {[%emt 0:00:30]} 14. Be3 {[%emt 0:00:30]} Nd7 {[%emt 0:02:30]} 15. Rc1 {[%emt 0:04:30]} Rf7 {[%emt 0:10:30]} 16. Qd2 {[%emt 0:09:30]} h6 {[%emt 0:07:30]} 17. b4 {[%emt 0:18:30]} g5 {[%emt 0:09:30]} 18. a3 {[%emt 0:20:30]} Nf8 {[%emt 0:03:30]} 19. Bh5 {[%emt 0:10:30]} Rg7 {[%emt 0:02:30]} 20. Na4 {[%emt 0:10:14]} Bd7 {[%emt 0:03:30]} 21. Nb6 {[%emt 0:07:18]} gxf4 {[%emt 0:09:30]} 22. Rxf4 {[%emt 0:00:06]} Rb8 {[%emt 0:01:30]} 23. Nxd7 {[%emt 0:00:05]} Qxd7 {[%emt 0:00:30]} 24. Rcf1 {[%emt 0:02:55]} Rg5 {[%emt 0:00:30]} 25. Be2 {[%emt 0:00:53]} Ng6 {[%emt 0:01:30]} 26. R4f2 {[%emt 0:00:10]} Rf8 {[%emt 0:00:30]} 27. Kh1 {[%emt 0:05:27]} Bd8 {[%emt 0:07:30]} 28. c5 {[%emt 0:02:37]} Rf7 {[%emt 0:15:56]} 29. c6 {[%emt 0:01:19]} Qc8 {[%emt 0:03:39]} 30. cxb7 {[%emt 0:01:09]} Qxb7 {[%emt 0:00:16]} 31. Qd4 {[%emt 0:00:51]} Bf6 {[%emt 0:01:49]} 32. Qc4 {[%emt 0:00:08]} Ne7 {[%emt 0:07:57]} 33. Qxa6 {[%emt 0:00:42]} Qd7 {[%emt 0:01:15]} 34. Bb5 {[%emt 0:00:38]} Qd8 {[%emt 0:00:24]} 35. Bc6 {[%emt 0:00:50]} Be5 {[%emt 0:01:30]} 36. Bxg5 {[%emt 0:00:33]} hxg5 {[%emt 0:00:13]} 37. g3 {[%emt 0:00:00]} Bd4 {[%emt 0:02:23]} 38. Rg2 {[%emt 0:00:52]} Kh7 {[%emt 0:01:28]} 39. Qc4 {[%emt 0:00:26]} Qb6 {[%emt 0:00:44]} 40. a4 {[%emt 0:00:23]} Ng6 {[%emt 0:00:20]} 41. Be8 {[%emt 0:00:18]} Ne5 {[%emt 0:00:48]} 42. Qe2 {[%emt 0:00:46]} Rf6 {[%emt 0:00:58]} 43. Qh5+ {[%emt 0:00:23]} Kg7 {[%emt 0:01:01]} 44. Qxg5+ {[%emt 0:00:02]} Ng6 {[%emt 0:00:00]} 45. Rxf5 {[%emt 0:00:46]} Qxb4 {[%emt 0:00:38]} 46. h4 {[%emt 0:00:43]} Qe1+ {[%emt 0:00:32]} 47. Kh2 {[%emt 0:00:09]} Be5 {[%emt 0:00:38]} 48. Rxf6 {[%emt 0:00:00]} Qxg3+ {[%emt 0:00:14]} 49. Rxg3 {[%emt 0:00:00]} 1-0

[Event "Turkish Second League 2019"]
[Site "Konya"]
[Date "2019.07.23"]
[Round "3"]
[White "Mustu, Hatice Asli"]
[Black "Abdulla, Khayala"]
[Result "1/2-1/2"]
[ECO "D02"]
[WhiteElo "1679"]
[BlackElo "2283"]
[Annotator "NA"]
[PlyCount "120"]
[EventDate "2019.07.22"]
[EventType "team-tourn"]
[EventCountry "TUR"]
[SourceTitle "playchess.com"]
[Source "ChessBase"]
[SourceQuality "1"]
[TimeControl "5400+30"]

1. d4 {[%emt 0:00:30]} Nf6 {[%emt 0:00:30]} 2. Bf4 {[%emt 0:00:30]} e6 {[%emt 0:00:30]} 3. e3 {[%emt 0:00:30]} d5 {[%emt 0:00:00]} 4. Nf3 {[%emt 0:00:30]} c5 {[%emt 0:00:00]} 5. c3 {[%emt 0:01:30]} Nc6 {[%emt 0:01:30]} 6. Nbd2 {[%emt 0:00:30]} Bd6 {[%emt 0:00:00]} 7. Bg3 {[%emt 0:03:30]} O-O {[%emt 0:01:00]} 8. Bd3 {[%emt 0:01:30]} b6 {[%emt 0:00:30]} 9. O-O {[%emt 0:00:30]} Bb7 {[%emt 0:02:30]} 10. Qe2 {[%emt 0:00:30]} Re8 {[%emt 0:13:30]} 11. Ne5 {[%emt 0:11:30]} Qc7 {[%emt 0:03:30]} 12. Nxc6 {[%emt 0:05:30]} Bxc6 {[%emt 0:01:30]} 13. Bxd6 {[%emt 0:10:30]} Qxd6 {[%emt 0:00:00]} 14. Nf3 {[%emt 0:01:30]} Nd7 {[%emt 0:07:00]} 15. e4 {[%emt 0:13:30]} cxd4 {[%emt 0:05:30]} 16. e5 {[%emt 0:00:30]} Qe7 {[%emt 0:04:30]} 17. cxd4 {[%emt 0:02:30]} Rac8 {[%emt 0:00:00]} 18. Rac1 {[%emt 0:03:30]} Nf8 {[%emt 0:03:00]} 19. Rc3 {[%emt 0:06:30]} Ng6 {[%emt 0:03:30]} 20. g3 {[%emt 0:03:30]} Qd7 {[%emt 0:11:30]} 21. Nd2 {[%emt 0:03:30]} Ne7 {[%emt 0:02:30]} 22. f4 {[%emt 0:01:30]} Ba4 {[%emt 0:02:30]} 23. Rfc1 {[%emt 0:05:30]} Rxc3 {[%emt 0:03:30]} 24. Rxc3 {[%emt 0:01:30]} Rc8 {[%emt 0:00:00]} 25. Nf3 {[%emt 0:01:30]} Rxc3 {[%emt 0:02:00]} 26. bxc3 {[%emt 0:00:30]} Qc6 {[%emt 0:03:30]} 27. Qb2 {[%emt 0:01:50]} Bd1 {[%emt 0:03:30]} 28. Kf2 {[%emt 0:02:10]} Bxf3 {[%emt 0:01:30]} 29. Kxf3 {[%emt 0:00:06]} g6 {[%emt 0:00:30]} 30. Bb5 {[%emt 0:00:52]} Qc7 {[%emt 0:02:30]} 31. Qb4 {[%emt 0:01:07]} h5 {[%emt 0:00:30]} 32. Ke3 {[%emt 0:00:42]} Nf5+ {[%emt 0:02:30]} 33. Kd3 {[%emt 0:01:09]} Qd8 {[%emt 0:01:30]} 34. Qb2 {[%emt 0:01:57]} g5 {[%emt 0:01:06]} 35. Qe2 {[%emt 0:02:15]} gxf4 {[%emt 0:04:09]} 36. Qxh5 {[%emt 0:01:10]} fxg3 {[%emt 0:01:33]} 37. hxg3 {[%emt 0:00:37]} a6 {[%emt 0:01:39]} 38. Ba4 {[%emt 0:02:38]} Qc7 {[%emt 0:00:33]} 39. Bb3 {[%emt 0:00:10]} b5 {[%emt 0:00:32]} 40. g4 {[%emt 0:01:34]} Ng3 {[%emt 0:03:52]} 41. Qg5+ {[%emt 0:01:26]} Kf8 {[%emt 0:00:02]} 42. Qh6+ {[%emt 0:00:00]} Ke8 {[%emt 0:00:11]} 43. Qh8+ {[%emt 0:00:39]} Kd7 {[%emt 0:00:04]} 44. Qf8 {[%emt 0:00:36]} Kc6 {[%emt 0:00:51]} 45. Qc5+ {[%emt 0:00:55]} Kb7 {[%emt 0:00:08]} 46. Qxc7+ {[%emt 0:00:36]} Kxc7 {[%emt 0:00:30]} 47. Bd1 {[%emt 0:00:00]} Ne4 {[%emt 0:01:22]} 48. Bf3 {[%emt 0:01:08]} Ng5 {[%emt 0:00:24]} 49. Be2 {[%emt 0:00:13]} Kb6 {[%emt 0:01:02]} 50. Kc2 {[%emt 0:00:09]} Ka5 {[%emt 0:01:38]} 51. a3 {[%emt 0:00:31]} Ne4 {[%emt 0:01:01]} 52. Kb2 {[%emt 0:00:56]} Ng5 {[%emt 0:01:39]} 53. Kb3 {[%emt 0:00:35]} Nh3 {[%emt 0:02:43]} 54. Kb2 {[%emt 0:00:42]} Nf4 {[%emt 0:00:20]} 55. Bd1 {[%emt 0:00:21]} Ng2 {[%emt 0:00:50]} 56. Kb3 {[%emt 0:00:14]} Nf4 {[%emt 0:01:20]} 57. Kb2 {[%emt 0:00:11]} Kb6 {[%emt 0:00:30]} 58. Kc2 {[%emt 0:00:21]} Ng6 {[%emt 0:02:18]} 59. Kd2 {[%emt 0:00:45]} Ne7 {[%emt 0:00:41]} 60. Ke3 {[%emt 0:00:54]} Ng6 {[%emt 0:01:16]} 1/2-1/2

[Event "Turkish Second League 2019"]
[Site "Konya"]
[Date "2019.07.23"]
[Round "3"]
[White "Cetinkaya, Umut Can"]
[Black "Zor, Alber Kadir"]
[Result "1-0"]
[ECO "C47"]
[WhiteElo "1639"]
[BlackElo "2160"]
[Annotator "NA"]
[PlyCount "119"]
[EventDate "2019.07.22"]
[EventType "team-tourn"]
[EventCountry "TUR"]
[SourceTitle "playchess.com"]
[Source "ChessBase"]
[SourceQuality "1"]
[TimeControl "5400+30"]

1. e4 {[%emt 0:00:30]} e5 {[%emt 0:00:30]} 2. Nc3 {[%emt 0:00:30]} Nf6 {[%emt 0:01:30]} 3. g3 {[%emt 0:00:00]} d5 {[%emt 0:00:30]} 4. exd5 {[%emt 0:00:00]} Nxd5 {[%emt 0:00:30]} 5. Bg2 {[%emt 0:00:00]} Nxc3 {[%emt 0:00:30]} 6. bxc3 {[%emt 0:00:00]} Nc6 {[%emt 0:00:30]} 7. Nf3 {[%emt 0:00:30]} Bc5 {[%emt 0:00:30]} 8. O-O {[%emt 0:00:30]} O-O {[%emt 0:00:30]} 9. Re1 {[%emt 0:00:30]} Qf6 {[%emt 0:00:30]} 10. d3 {[%emt 0:00:30]} Bb6 {[%emt 0:00:30]} 11. Qe2 {[%emt 0:00:30]} Bg4 {[%emt 0:00:30]} 12. h3 {[%emt 0:00:30]} Bh5 {[%emt 0:00:30]} 13. g4 {[%emt 0:00:30]} Bg6 {[%emt 0:00:30]} 14. Bg5 {[%emt 0:00:30]} Qd6 {[%emt 0:00:30]} 15. Nd2 {[%emt 0:38:30]} Qd7 {[%emt 0:24:30]} 16. Nc4 {[%emt 0:03:30]} Rae8 {[%emt 0:04:30]} 17. Nxb6 {[%emt 0:05:30]} axb6 {[%emt 0:00:00]} 18. Rab1 {[%emt 0:10:30]} f6 {[%emt 0:01:00]} 19. Bc1 {[%emt 0:02:30]} Ra8 {[%emt 0:01:30]} 20. a3 {[%emt 0:03:30]} Bf7 {[%emt 0:02:30]} 21. Be4 {[%emt 0:04:30]} Bd5 {[%emt 0:06:30]} 22. Qf3 {[%emt 0:02:30]} Bxe4 {[%emt 0:01:30]} 23. Rxe4 {[%emt 0:05:30]} f5 {[%emt 0:05:30]} 24. gxf5 {[%emt 0:04:21]} Rxf5 {[%emt 0:01:30]} 25. Qg3 {[%emt 0:00:13]} Raf8 {[%emt 0:03:30]} 26. Be3 {[%emt 0:03:13]} Rf3 {[%emt 0:01:30]} 27. Qg4 {[%emt 0:06:34]} Qf7 {[%emt 0:00:30]} 28. Kh2 {[%emt 0:05:21]} Rf6 {[%emt 0:08:30]} 29. Rg1 {[%emt 0:01:07]} Rg6 {[%emt 0:00:30]} 30. Qh4 {[%emt 0:00:41]} Ne7 {[%emt 0:11:30]} 31. Rxg6 {[%emt 0:01:35]} Nxg6 {[%emt 0:01:30]} 32. Qg4 {[%emt 0:00:29]} Qf6 {[%emt 0:08:51]} 33. Kg2 {[%emt 0:00:51]} Qc6 {[%emt 0:01:32]} 34. c4 {[%emt 0:00:31]} Rf6 {[%emt 0:04:17]} 35. Kh2 {[%emt 0:00:26]} Kf7 {[%emt 0:03:15]} 36. h4 {[%emt 0:00:29]} Qe6 {[%emt 0:01:02]} 37. Qxe6+ {[%emt 0:00:34]} Rxe6 {[%emt 0:00:08]} 38. Kg3 {[%emt 0:00:24]} Ne7 {[%emt 0:00:22]} 39. Kg4 {[%emt 0:00:35]} g6 {[%emt 0:00:38]} 40. Bg5 {[%emt 0:00:29]} Nf5 {[%emt 0:00:24]} 41. Bd8 {[%emt 0:00:33]} h5+ {[%emt 0:01:04]} 42. Kh3 {[%emt 0:00:31]} Nd6 {[%emt 0:02:39]} 43. Re3 {[%emt 0:00:10]} Ne8 {[%emt 0:00:51]} 44. Kg3 {[%emt 0:00:15]} Rd6 {[%emt 0:00:42]} 45. Bg5 {[%emt 0:00:36]} Re6 {[%emt 0:00:16]} 46. Bd8 {[%emt 0:00:21]} c5 {[%emt 0:00:39]} 47. f4 {[%emt 0:01:00]} exf4+ {[%emt 0:01:52]} 48. Kxf4 {[%emt 0:00:01]} Ng7 {[%emt 0:00:14]} 49. Bg5 {[%emt 0:01:03]} Nf5 {[%emt 0:00:00]} 50. Rxe6 {[%emt 0:00:58]} Kxe6 {[%emt 0:00:26]} 51. c3 {[%emt 0:00:00]} Nd6 {[%emt 0:00:25]} 52. a4 {[%emt 0:00:31]} Nf7 {[%emt 0:00:41]} 53. d4 {[%emt 0:00:33]} Nd6 {[%emt 0:00:25]} 54. d5+ {[%emt 0:00:29]} Kf7 {[%emt 0:00:30]} 55. Bd8 {[%emt 0:00:23]} Nxc4 {[%emt 0:00:07]} 56. Kg5 {[%emt 0:00:37]} Ne3 {[%emt 0:01:08]} 57. d6 {[%emt 0:00:28]} Nc4 {[%emt 0:00:39]} 58. Bc7 {[%emt 0:00:32]} Ne5 {[%emt 0:00:42]} 59. Bxb6 {[%emt 0:00:10]} Nf3+ {[%emt 0:00:28]} 60. Kf4 {[%emt 0:00:13]} 1-0

[Event "Turkish Second League 2019"]
[Site "Konya"]
[Date "2019.07.23"]
[Round "3"]
[White "Ugur, Cem"]
[Black "Dere, Abdullah Dogukan"]
[Result "0-1"]
[ECO "B27"]
[WhiteElo "1623"]
[BlackElo "1960"]
[Annotator "NA"]
[PlyCount "54"]
[EventDate "2019.07.22"]
[EventType "team-tourn"]
[EventCountry "TUR"]
[SourceTitle "playchess.com"]
[Source "ChessBase"]
[SourceQuality "1"]
[TimeControl "5400+30"]

1. e4 {[%emt 0:00:30]} c5 {[%emt 0:00:30]} 2. Nf3 {[%emt 0:00:30]} g6 {[%emt 0:00:30]} 3. d4 {[%emt 0:00:30]} cxd4 {[%emt 0:00:30]} 4. Qxd4 {[%emt 0:00:30]} Nf6 {[%emt 0:00:30]} 5. Nc3 {[%emt 0:00:30]} Nc6 {[%emt 0:00:30]} 6. Qa4 {[%emt 0:00:30]} d6 {[%emt 0:00:30]} 7. e5 {[%emt 0:00:30]} dxe5 {[%emt 0:00:30]} 8. Nxe5 {[%emt 0:00:30]} Qd4 {[%emt 0:00:00]} 9. Nc4 {[%emt 0:00:00]} Bg7 {[%emt 0:11:00]} 10. Be3 {[%emt 0:00:00]} Qd8 {[%emt 0:00:30]} 11. Ne5 {[%emt 0:03:30]} Bd7 {[%emt 0:03:30]} 12. Nxd7 {[%emt 0:00:30]} Qxd7 {[%emt 0:01:30]} 13. Rd1 {[%emt 0:00:30]} Qc8 {[%emt 0:00:30]} 14. Be2 {[%emt 0:01:30]} O-O {[%emt 0:00:30]} 15. O-O {[%emt 0:00:30]} a6 {[%emt 0:13:30]} 16. Bb6 {[%emt 0:07:30]} Nd7 {[%emt 0:08:30]} 17. Nd5 {[%emt 0:06:30]} e6 {[%emt 0:02:30]} 18. Ne7+ {[%emt 0:00:30]} Nxe7 {[%emt 0:00:30]} 19. Qxd7 {[%emt 0:03:30]} Nd5 {[%emt 0:00:00]} 20. Rxd5 {[%emt 0:01:30]} exd5 {[%emt 0:00:00]} 21. Qxd5 {[%emt 0:00:30]} Qxc2 {[%emt 0:00:30]} 22. Bc4 {[%emt 0:00:30]} Rac8 {[%emt 0:09:30]} 23. b3 {[%emt 0:04:30]} Kh8 {[%emt 0:16:30]} 24. Qxb7 {[%emt 0:02:30]} Qxa2 {[%emt 0:00:30]} 25. Qd7 {[%emt 0:04:30]} Qc2 {[%emt 0:03:30]} 26. Bxf7 {[%emt 0:04:30]} Qc6 {[%emt 0:00:30]} 27. Be6 {[%emt 0:08:30]} Qxb6 {[%emt 0:00:00]} 0-1

[Event "Turkish Second League 2019"]
[Site "Konya"]
[Date "2019.07.23"]
[Round "3"]
[White "Konal, Emine Nursel"]
[Black "Ibrahimova, Sabina"]
[Result "0-1"]
[ECO "B35"]
[WhiteElo "1306"]
[BlackElo "2190"]
[Annotator "NA"]
[PlyCount "56"]
[EventDate "2019.07.22"]
[EventType "team-tourn"]
[EventCountry "TUR"]
[SourceTitle "playchess.com"]
[Source "ChessBase"]
[SourceQuality "1"]
[TimeControl "5400+30"]

1. e4 {[%emt 0:00:30]} c5 {[%emt 0:00:30]} 2. Nf3 {[%emt 0:00:30]} Nc6 {[%emt 0:00:30]} 3. d4 {[%emt 0:00:30]} cxd4 {[%emt 0:00:30]} 4. Nxd4 {[%emt 0:00:30]} g6 {[%emt 0:00:00]} 5. Be3 {[%emt 0:00:00]} Bg7 {[%emt 0:01:00]} 6. Bc4 {[%emt 0:00:00]} Nf6 {[%emt 0:00:30]} 7. f3 {[%emt 0:00:30]} O-O {[%emt 0:05:30]} 8. Nc3 {[%emt 0:07:30]} Qb6 {[%emt 0:10:30]} 9. Bb3 {[%emt 0:06:30]} Nxe4 {[%emt 0:04:30]} 10. Nd5 {[%emt 0:08:30]} Qa5+ {[%emt 0:00:30]} 11. c3 {[%emt 0:00:30]} Nf6 {[%emt 0:12:30]} 12. Nxc6 {[%emt 0:03:30]} dxc6 {[%emt 0:01:30]} 13. Nxe7+ {[%emt 0:00:30]} Kh8 {[%emt 0:00:30]} 14. Nxc8 {[%emt 0:05:30]} Raxc8 {[%emt 0:02:30]} 15. O-O {[%emt 0:01:30]} Rcd8 {[%emt 0:00:00]} 16. Qc2 {[%emt 0:01:30]} Nd5 {[%emt 0:06:00]} 17. Bf2 {[%emt 0:07:30]} h5 {[%emt 0:06:30]} 18. Rad1 {[%emt 0:06:30]} Nf4 {[%emt 0:06:30]} 19. Rfe1 {[%emt 0:05:30]} Bf6 {[%emt 0:02:30]} 20. Re4 {[%emt 0:07:30]} Rxd1+ {[%emt 0:08:30]} 21. Qxd1 {[%emt 0:00:30]} Rd8 {[%emt 0:05:30]} 22. Qc1 {[%emt 0:02:30]} g5 {[%emt 0:02:30]} 23. Qe3 {[%emt 0:13:30]} Kg7 {[%emt 0:07:45]} 24. Re8 {[%emt 0:10:48]} Qf5 {[%emt 0:03:51]} 25. Rxd8 {[%emt 0:01:40]} Bxd8 {[%emt 0:00:17]} 26. Qe8 {[%emt 0:03:24]} Qb1+ {[%emt 0:05:37]} 27. Be1 {[%emt 0:03:22]} Bb6+ {[%emt 0:00:07]} 28. Kh1 {[%emt 0:00:09]} Ne6 {[%emt 0:00:06]} 0-1